[Event "Early-Titled-Tuesday-Blitz-April-16-2024"]
[Site "Chess.com"]
[Date "2024.04.16"]
[Round "2"]
[White "margarita_2703"]
[Black "Pedrada88"]
[Result "0-1"]
[WhiteElo "2352"]
[BlackElo "2583"]
[TimeControl "180+1"]
[EndTime "8:13:10 PDT"]
[Termination "Pedrada88 won by resignation"]

1. e4 {[%clk 0:03:00.9]} 1... b6 {[%clk 0:03:00.5]} 2. d4 {[%clk 0:03:00.6]}
2... Bb7 {[%clk 0:03:01.2]} 3. Bd3 {[%clk 0:03:01.2]} 3... e6 {[%clk 0:03:01.7]}
4. Nf3 {[%clk 0:03:01.1]} 4... d5 {[%clk 0:03:02.2]} 5. e5 {[%clk 0:03:01.1]}
5... c5 {[%clk 0:03:02.3]} 6. c3 {[%clk 0:03:01.3]} 6... Qd7 {[%clk 0:03:01.9]}
7. O-O {[%clk 0:02:58.9]} 7... Ba6 {[%clk 0:03:02.2]} 8. Bc2 {[%clk 0:02:56.6]}
8... Bxf1 {[%clk 0:03:01.4]} 9. Qxf1 {[%clk 0:02:57.5]} 9... Ne7 {[%clk
0:02:56.5]} 10. a3 {[%clk 0:02:56.8]} 10... Nbc6 {[%clk 0:02:55.2]} 11. b4
{[%clk 0:02:55.3]} 11... cxd4 {[%clk 0:02:53.5]} 12. cxd4 {[%clk 0:02:55.6]}
12... a6 {[%clk 0:02:47.9]} 13. Bd3 {[%clk 0:02:53.3]} 13... b5 {[%clk 0:02:48]}
14. Nbd2 {[%clk 0:02:53.9]} 14... Nc8 {[%clk 0:02:48.2]} 15. Nb3 {[%clk
0:02:54.5]} 15... Nb6 {[%clk 0:02:47.8]} 16. Nc5 {[%clk 0:02:55.2]} 16... Bxc5
{[%clk 0:02:48.1]} 17. dxc5 {[%clk 0:02:56.1]} 17... Nc4 {[%clk 0:02:48.7]} 18.
Qe2 {[%clk 0:02:51.2]} 18... h6 {[%clk 0:02:46.1]} 19. Bb2 {[%clk 0:02:49.1]}
19... O-O {[%clk 0:02:43.9]} 20. Bc3 {[%clk 0:02:45.6]} 20... a5 {[%clk
0:02:43.5]} 21. Bxc4 {[%clk 0:02:43]} 21... dxc4 {[%clk 0:02:41.3]} 22. Rd1
{[%clk 0:02:42.9]} 22... Qc7 {[%clk 0:02:40]} 23. Rd6 {[%clk 0:02:38.4]} 23...
axb4 {[%clk 0:02:39.9]} 24. axb4 {[%clk 0:02:39.3]} 24... Ra3 {[%clk 0:02:38.4]}
25. Qd2 {[%clk 0:02:38.4]} 25... Rfa8 {[%clk 0:02:32]} 26. h4 {[%clk 0:02:31.6]}
26... Ra2 {[%clk 0:02:20.8]} 27. Qf4 {[%clk 0:02:28.9]} 27... Rc2 {[%clk
0:02:15.3]} 28. Be1 {[%clk 0:02:23]} 28... Ra1 {[%clk 0:02:10.9]} 29. Kh2 {[%clk
0:02:20.2]} 29... Re2 {[%clk 0:01:54.4]} 30. Qe4 {[%clk 0:02:15.9]} 30... Rxe4
{[%clk 0:01:53.9]} 0-1

[Event "Early-Titled-Tuesday-Blitz-April-16-2024"]
[Site "Chess.com"]
[Date "2024.04.16"]
[Round "2"]
[White "mertfelin"]
[Black "chess_blitz00"]
[Result "0-1"]
[WhiteElo "2228"]
[BlackElo "2498"]
[TimeControl "180+1"]
[EndTime "8:14:23 PDT"]
[Termination "chess_blitz00 won by resignation"]

1. e4 {[%clk 0:03:00.4]} 1... d6 {[%clk 0:03:00.9]} 2. d4 {[%clk 0:03:00.6]}
2... Nf6 {[%clk 0:03:01.7]} 3. Nc3 {[%clk 0:03:00.8]} 3... e5 {[%clk 0:03:02.6]}
4. Nf3 {[%clk 0:03:01]} 4... Nbd7 {[%clk 0:03:02.7]} 5. a4 {[%clk 0:03:01.4]}
5... Be7 {[%clk 0:03:03.3]} 6. Bc4 {[%clk 0:03:01.6]} 6... O-O {[%clk
0:03:03.5]} 7. O-O {[%clk 0:03:02.3]} 7... exd4 {[%clk 0:03:02.5]} 8. Nxd4
{[%clk 0:03:02.7]} 8... Ne5 {[%clk 0:03:03.2]} 9. Bb3 {[%clk 0:02:58.8]} 9... c6
{[%clk 0:03:02.3]} 10. h3 {[%clk 0:02:58.7]} 10... Re8 {[%clk 0:02:53.2]} 11.
Re1 {[%clk 0:02:58.9]} 11... Bf8 {[%clk 0:02:53.7]} 12. Bf4 {[%clk 0:02:58.4]}
12... Ng6 {[%clk 0:02:53.4]} 13. Bh2 {[%clk 0:02:57.2]} 13... Qb6 {[%clk
0:02:51.9]} 14. a5 {[%clk 0:02:53.5]} 14... Qc7 {[%clk 0:02:48.6]} 15. a6 {[%clk
0:02:53.9]} 15... bxa6 {[%clk 0:02:43.8]} 16. Nf5 {[%clk 0:02:46.2]} 16... Ne5
{[%clk 0:02:36.8]} 17. Bg3 {[%clk 0:02:36]} 17... Bb7 {[%clk 0:02:29.2]} 18. Qd2
{[%clk 0:02:31]} 18... c5 {[%clk 0:02:09.2]} 19. Bh4 {[%clk 0:02:15.4]} 19...
Ned7 {[%clk 0:01:57.1]} 20. f3 {[%clk 0:01:56.7]} 20... c4 {[%clk 0:01:39.7]}
21. Ba4 {[%clk 0:01:56.9]} 21... Bc6 {[%clk 0:01:32]} 22. Bxc6 {[%clk
0:01:54.7]} 22... Qxc6 {[%clk 0:01:32.9]} 23. Red1 {[%clk 0:01:53.2]} 23... Red8
{[%clk 0:00:59.7]} 24. Ra5 {[%clk 0:01:49.2]} 24... Qb6+ {[%clk 0:00:58.4]} 0-1

[Event "Early-Titled-Tuesday-Blitz-April-16-2024"]
[Site "Chess.com"]
[Date "2024.04.16"]
[Round "2"]
[White "MdSharifHossain"]
[Black "Orphanator2009"]
[Result "0-1"]
[WhiteElo "2291"]
[BlackElo "2520"]
[TimeControl "180+1"]
[EndTime "8:14:25 PDT"]
[Termination "Orphanator2009 won by checkmate"]

1. e4 {[%clk 0:02:58.8]} 1... c5 {[%clk 0:02:58.7]} 2. Nf3 {[%clk 0:02:57.8]}
2... d6 {[%clk 0:02:58.9]} 3. d4 {[%clk 0:02:58.1]} 3... cxd4 {[%clk 0:02:59.8]}
4. Nxd4 {[%clk 0:02:58.9]} 4... Nf6 {[%clk 0:03:00.4]} 5. Nc3 {[%clk 0:02:59.3]}
5... Nc6 {[%clk 0:03:00.3]} 6. Bg5 {[%clk 0:02:57.3]} 6... e6 {[%clk 0:03:00.4]}
7. Qd2 {[%clk 0:02:57.3]} 7... a6 {[%clk 0:03:00.5]} 8. Nf3 {[%clk 0:02:55.1]}
8... h6 {[%clk 0:02:56.7]} 9. Bh4 {[%clk 0:02:50.9]} 9... Be7 {[%clk 0:02:47.3]}
10. O-O-O {[%clk 0:02:49.6]} 10... Qa5 {[%clk 0:02:43.3]} 11. Kb1 {[%clk
0:02:44.8]} 11... Bd7 {[%clk 0:02:40.2]} 12. e5 {[%clk 0:02:31.4]} 12... Nxe5
{[%clk 0:02:28.3]} 13. Bxf6 {[%clk 0:02:23.5]} 13... Bxf6 {[%clk 0:02:22.4]} 14.
Qxd6 {[%clk 0:02:17.2]} 14... Rd8 {[%clk 0:02:07.8]} 15. Ne4 {[%clk 0:02:05]}
15... Nxf3 {[%clk 0:01:59.9]} 16. Nxf6+ {[%clk 0:01:49.1]} 16... gxf6 {[%clk
0:02:00.8]} 17. gxf3 {[%clk 0:01:45.8]} 17... Bc6 {[%clk 0:01:59.1]} 18. Qxd8+
{[%clk 0:01:43.4]} 18... Qxd8 {[%clk 0:02:00]} 19. Rxd8+ {[%clk 0:01:43.7]}
19... Kxd8 {[%clk 0:02:00.9]} 20. Be2 {[%clk 0:01:42.7]} 20... Rg8 {[%clk
0:02:01.5]} 21. Kc1 {[%clk 0:01:28.7]} 21... Rg2 {[%clk 0:01:54.3]} 22. Kd2
{[%clk 0:01:28.8]} 22... Rxf2 {[%clk 0:01:53.4]} 23. Ke3 {[%clk 0:01:28.9]}
23... Rg2 {[%clk 0:01:53.8]} 24. Bd3 {[%clk 0:01:27.3]} 24... Ke7 {[%clk
0:01:52.5]} 25. b4 {[%clk 0:01:24.8]} 25... f5 {[%clk 0:01:49.5]} 26. a3 {[%clk
0:01:18.5]} 26... Kf6 {[%clk 0:01:45.1]} 27. c4 {[%clk 0:01:14.4]} 27... e5
{[%clk 0:01:44.3]} 28. b5 {[%clk 0:01:13.6]} 28... f4# {[%clk 0:01:43]} 0-1

[Event "Early-Titled-Tuesday-Blitz-April-16-2024"]
[Site "Chess.com"]
[Date "2024.04.16"]
[Round "2"]
[White "temus_galaktionov"]
[Black "Vse_po_kaify"]
[Result "0-1"]
[WhiteElo "2852"]
[BlackElo "2597"]
[TimeControl "180+1"]
[EndTime "8:14:32 PDT"]
[Termination "Vse_po_kaify won by resignation"]

1. d4 {[%clk 0:03:00.9]} 1... Nf6 {[%clk 0:02:59.8]} 2. Nf3 {[%clk 0:03:00.2]}
2... e6 {[%clk 0:03:00.4]} 3. c4 {[%clk 0:02:59.9]} 3... Bb4+ {[%clk 0:03:00.2]}
4. Nbd2 {[%clk 0:02:55.7]} 4... O-O {[%clk 0:02:59.5]} 5. a3 {[%clk 0:02:55.6]}
5... Bxd2+ {[%clk 0:02:59.2]} 6. Qxd2 {[%clk 0:02:56.5]} 6... Ne4 {[%clk
0:02:59]} 7. Qc2 {[%clk 0:02:56.3]} 7... f5 {[%clk 0:02:59.4]} 8. b4 {[%clk
0:02:53.2]} 8... a5 {[%clk 0:02:59.1]} 9. b5 {[%clk 0:02:53.3]} 9... d6 {[%clk
0:02:59.5]} 10. Bb2 {[%clk 0:02:51.9]} 10... b6 {[%clk 0:02:59.7]} 11. e3 {[%clk
0:02:52.2]} 11... Nd7 {[%clk 0:02:59.9]} 12. Nd2 {[%clk 0:02:52.2]} 12... Bb7
{[%clk 0:02:58.7]} 13. f3 {[%clk 0:02:51]} 13... Qh4+ {[%clk 0:02:51.3]} 14. Ke2
{[%clk 0:02:47.8]} 14... Ng3+ {[%clk 0:02:32.4]} 15. hxg3 {[%clk 0:02:46.2]}
15... Qxh1 {[%clk 0:02:32.9]} 16. Kf2 {[%clk 0:02:45.7]} 16... Nf6 {[%clk
0:02:31.7]} 17. d5 {[%clk 0:02:38]} 17... exd5 {[%clk 0:02:29.8]} 18. cxd5
{[%clk 0:02:35.7]} 18... Rae8 {[%clk 0:02:05.8]} 19. Bd3 {[%clk 0:02:17.9]}
19... Ng4+ {[%clk 0:01:58.6]} 20. fxg4 {[%clk 0:02:17.1]} 20... fxg4+ {[%clk
0:01:59.2]} 21. Bf5 {[%clk 0:02:09.1]} 21... Qh6 {[%clk 0:01:50.7]} 22. e4
{[%clk 0:01:56]} 22... Bxd5 {[%clk 0:01:41.9]} 23. Kg1 {[%clk 0:01:51.8]} 23...
Qe3+ {[%clk 0:01:40]} 24. Kh2 {[%clk 0:01:51.8]} 24... Qh6+ {[%clk 0:01:32.1]}
25. Kg1 {[%clk 0:01:51.7]} 25... Qe3+ {[%clk 0:01:17.3]} 26. Kh2 {[%clk
0:01:51.7]} 26... Rxf5 {[%clk 0:01:17.3]} 27. exf5 {[%clk 0:01:46.5]} 27... Qh6+
{[%clk 0:01:11.8]} 28. Kg1 {[%clk 0:01:46.5]} 28... Re2 {[%clk 0:01:11.9]} 0-1

[Event "Early-Titled-Tuesday-Blitz-April-16-2024"]
[Site "Chess.com"]
[Date "2024.04.16"]
[Round "2"]
[White "Khromkin"]
[Black "Juicy_Fork"]
[Result "1-0"]
[WhiteElo "2355"]
[BlackElo "2524"]
[TimeControl "180+1"]
[EndTime "8:14:43 PDT"]
[Termination "Khromkin won by checkmate"]

1. d4 {[%clk 0:02:57.4]} 1... Nf6 {[%clk 0:02:56.5]} 2. c4 {[%clk 0:02:58]} 2...
g6 {[%clk 0:02:52.8]} 3. Nf3 {[%clk 0:02:58.6]} 3... Bg7 {[%clk 0:02:51.5]} 4.
Nc3 {[%clk 0:02:58]} 4... O-O {[%clk 0:02:51.4]} 5. g3 {[%clk 0:02:58.9]} 5...
d6 {[%clk 0:02:51.2]} 6. Bg2 {[%clk 0:02:59.8]} 6... c5 {[%clk 0:02:51.9]} 7.
O-O {[%clk 0:03:00.3]} 7... Nc6 {[%clk 0:02:52.6]} 8. dxc5 {[%clk 0:03:00.5]}
8... dxc5 {[%clk 0:02:52.8]} 9. Be3 {[%clk 0:03:01.2]} 9... Be6 {[%clk
0:02:51.8]} 10. Qa4 {[%clk 0:02:59.5]} 10... Nd4 {[%clk 0:02:37.9]} 11. Rad1
{[%clk 0:02:50.7]} 11... Bd7 {[%clk 0:02:35.3]} 12. Qa3 {[%clk 0:02:49.8]} 12...
Nc2 {[%clk 0:02:35.1]} 13. Qxc5 {[%clk 0:02:49.6]} 13... b6 {[%clk 0:02:27.3]}
14. Qg5 {[%clk 0:02:48.7]} 14... h6 {[%clk 0:02:26.1]} 15. Qh4 {[%clk
0:02:49.3]} 15... g5 {[%clk 0:01:59.5]} 16. Bxg5 {[%clk 0:02:49]} 16... hxg5
{[%clk 0:01:58]} 17. Nxg5 {[%clk 0:02:49.6]} 17... Rc8 {[%clk 0:01:39.6]} 18.
Nd5 {[%clk 0:02:42.8]} 18... Re8 {[%clk 0:01:36.7]} 19. Be4 {[%clk 0:01:48.7]}
19... Nxe4 {[%clk 0:01:19.9]} 20. Qxe4 {[%clk 0:01:48.4]} 20... e6 {[%clk
0:01:19.3]} 21. Qh7+ {[%clk 0:01:43.8]} 21... Kf8 {[%clk 0:01:17.7]} 22. Qh5
{[%clk 0:01:44.4]} 22... Re7 {[%clk 0:00:56]} 23. Nh7+ {[%clk 0:01:44]} 23...
Kg8 {[%clk 0:00:52]} 24. Ndf6+ {[%clk 0:01:42.6]} 24... Bxf6 {[%clk 0:00:51.8]}
25. Nxf6+ {[%clk 0:01:42.7]} 25... Kg7 {[%clk 0:00:52.5]} 26. Qg5+ {[%clk
0:01:41.2]} 26... Kf8 {[%clk 0:00:52.7]} 27. Qg8# {[%clk 0:01:41.1]} 1-0

[Event "Early-Titled-Tuesday-Blitz-April-16-2024"]
[Site "Chess.com"]
[Date "2024.04.16"]
[Round "2"]
[White "LegenDaDaDa"]
[Black "kecalk"]
[Result "0-1"]
[WhiteElo "2281"]
[BlackElo "2513"]
[TimeControl "180+1"]
[EndTime "8:14:45 PDT"]
[Termination "kecalk won by resignation"]

1. Nf3 {[%clk 0:02:54.7]} 1... c5 {[%clk 0:02:58.6]} 2. e3 {[%clk 0:02:54.6]}
2... d5 {[%clk 0:02:56.7]} 3. d4 {[%clk 0:02:53.5]} 3... Nc6 {[%clk 0:02:55.4]}
4. b3 {[%clk 0:02:49.9]} 4... cxd4 {[%clk 0:02:52.6]} 5. exd4 {[%clk 0:02:49.6]}
5... Bg4 {[%clk 0:02:53.1]} 6. Bb2 {[%clk 0:02:45.6]} 6... e6 {[%clk 0:02:51]}
7. Be2 {[%clk 0:02:40.9]} 7... Bd6 {[%clk 0:02:46.7]} 8. Nbd2 {[%clk 0:02:40.5]}
8... Nge7 {[%clk 0:02:45.1]} 9. O-O {[%clk 0:02:40.4]} 9... O-O {[%clk
0:02:44.8]} 10. c4 {[%clk 0:02:34.1]} 10... dxc4 {[%clk 0:02:25.7]} 11. bxc4
{[%clk 0:02:32.8]} 11... Bc7 {[%clk 0:01:59.7]} 12. h3 {[%clk 0:02:26.6]} 12...
Bh5 {[%clk 0:01:53.7]} 13. Re1 {[%clk 0:02:20.7]} 13... Ba5 {[%clk 0:01:44.4]}
14. Rf1 {[%clk 0:02:11.1]} 14... Bc7 {[%clk 0:01:18.4]} 15. Re1 {[%clk
0:02:06.4]} 15... Bg6 {[%clk 0:01:18.4]} 16. Nf1 {[%clk 0:01:57.5]} 16... Nb4
{[%clk 0:01:00.1]} 17. Ne3 {[%clk 0:01:52.5]} 17... Nf5 {[%clk 0:00:59.8]} 18.
Nxf5 {[%clk 0:01:50.8]} 18... Bxf5 {[%clk 0:01:00.1]} 19. Nh4 {[%clk 0:01:48.2]}
19... Qxh4 {[%clk 0:00:59.1]} 0-1

[Event "Early-Titled-Tuesday-Blitz-April-16-2024"]
[Site "Chess.com"]
[Date "2024.04.16"]
[Round "2"]
[White "mr_gustavo"]
[Black "Tol_Tol"]
[Result "1-0"]
[WhiteElo "2710"]
[BlackElo "2426"]
[TimeControl "180+1"]
[EndTime "8:14:47 PDT"]
[Termination "mr_gustavo won by resignation"]

1. b3 {[%clk 0:03:00.9]} 1... e5 {[%clk 0:02:56.2]} 2. Bb2 {[%clk 0:03:01.1]}
2... d6 {[%clk 0:02:56.5]} 3. c4 {[%clk 0:03:00]} 3... Nf6 {[%clk 0:02:56.8]} 4.
Nc3 {[%clk 0:03:00.3]} 4... Be7 {[%clk 0:02:57.4]} 5. g3 {[%clk 0:02:59.9]} 5...
O-O {[%clk 0:02:57.7]} 6. Bg2 {[%clk 0:03:00.5]} 6... c6 {[%clk 0:02:58.6]} 7.
d4 {[%clk 0:02:58.4]} 7... exd4 {[%clk 0:02:56.8]} 8. Qxd4 {[%clk 0:02:59.3]}
8... a5 {[%clk 0:02:55.1]} 9. Nf3 {[%clk 0:02:58.9]} 9... Na6 {[%clk 0:02:53.4]}
10. O-O {[%clk 0:02:58.9]} 10... Nc5 {[%clk 0:02:51.3]} 11. Qd2 {[%clk
0:02:57.2]} 11... a4 {[%clk 0:02:47.5]} 12. b4 {[%clk 0:02:45.4]} 12... a3
{[%clk 0:02:47.5]} 13. Bc1 {[%clk 0:02:45.3]} 13... Nce4 {[%clk 0:02:43.8]} 14.
Nxe4 {[%clk 0:02:43.4]} 14... Nxe4 {[%clk 0:02:44.3]} 15. Qe3 {[%clk 0:02:42]}
15... Bf6 {[%clk 0:02:36.1]} 16. Nd4 {[%clk 0:02:40.2]} 16... c5 {[%clk
0:02:25]} 17. Qxe4 {[%clk 0:02:38.6]} 17... Bxd4 {[%clk 0:02:22.5]} 18. Rb1
{[%clk 0:02:38]} 18... Re8 {[%clk 0:02:19.8]} 19. Qd3 {[%clk 0:02:36.7]} 19...
Qf6 {[%clk 0:02:09.9]} 20. Bxa3 {[%clk 0:02:25.2]} 20... Bf5 {[%clk 0:01:47]}
21. e4 {[%clk 0:02:24.9]} 21... Bg6 {[%clk 0:01:35.4]} 22. bxc5 {[%clk
0:02:20.9]} 22... dxc5 {[%clk 0:01:30.4]} 23. Rxb7 {[%clk 0:02:20.1]} 23... Qc6
{[%clk 0:01:25.3]} 24. Rb3 {[%clk 0:02:17.3]} 24... Bxe4 {[%clk 0:01:24]} 25.
Bxe4 {[%clk 0:02:14.6]} 25... Rxe4 {[%clk 0:01:22.8]} 26. Rfb1 {[%clk 0:02:13]}
26... Rae8 {[%clk 0:01:14.5]} 27. Rb8 {[%clk 0:02:07.6]} 27... Qf6 {[%clk
0:00:59.8]} 28. Qxe4 {[%clk 0:02:00.4]} 1-0

[Event "Early-Titled-Tuesday-Blitz-April-16-2024"]
[Site "Chess.com"]
[Date "2024.04.16"]
[Round "2"]
[White "xasid81"]
[Black "NovakRatko"]
[Result "1-0"]
[WhiteElo "2634"]
[BlackElo "2372"]
[TimeControl "180+1"]
[EndTime "8:15:05 PDT"]
[Termination "xasid81 won by resignation"]

1. f4 {[%clk 0:02:58.2]} 1... d5 {[%clk 0:02:59.4]} 2. Nf3 {[%clk 0:02:58.1]}
2... c5 {[%clk 0:02:59.9]} 3. g3 {[%clk 0:02:58.6]} 3... Nc6 {[%clk 0:03:00.4]}
4. Bg2 {[%clk 0:02:59.1]} 4... f6 {[%clk 0:03:01]} 5. O-O {[%clk 0:02:59.6]}
5... e5 {[%clk 0:03:01.6]} 6. fxe5 {[%clk 0:03:00.1]} 6... fxe5 {[%clk
0:03:01.9]} 7. e4 {[%clk 0:03:00.7]} 7... d4 {[%clk 0:03:01.6]} 8. d3 {[%clk
0:03:00]} 8... Bg4 {[%clk 0:03:00.6]} 9. Nbd2 {[%clk 0:02:58.2]} 9... Qd7 {[%clk
0:03:00.5]} 10. Nc4 {[%clk 0:02:57.4]} 10... Bd6 {[%clk 0:03:00.3]} 11. h3
{[%clk 0:02:53]} 11... Bh5 {[%clk 0:03:00.5]} 12. Nfxe5 {[%clk 0:02:45.9]} 12...
Bxd1 {[%clk 0:02:36.6]} 13. Nxd7 {[%clk 0:02:45.6]} 13... Bxc2 {[%clk
0:02:28.5]} 14. Nxd6+ {[%clk 0:02:43.3]} 14... Kxd7 {[%clk 0:02:28.5]} 15. Nf7
{[%clk 0:02:41.7]} 15... Bxd3 {[%clk 0:02:21.7]} 16. Rf2 {[%clk 0:02:30.4]}
16... Rb8 {[%clk 0:02:05.8]} 17. Nxh8 {[%clk 0:02:28.5]} 17... Nf6 {[%clk
0:02:02.1]} 18. Nf7 {[%clk 0:02:27.4]} 18... Nxe4 {[%clk 0:02:00.7]} 19. Bxe4
{[%clk 0:02:22.4]} 19... Bxe4 {[%clk 0:02:00.6]} 20. Bf4 {[%clk 0:02:19.9]}
20... Rf8 {[%clk 0:01:59.9]} 21. Ng5 {[%clk 0:02:13.7]} 21... Bd5 {[%clk
0:01:59.6]} 22. Nxh7 {[%clk 0:02:11.6]} 22... Rh8 {[%clk 0:01:59.6]} 23. Ng5
{[%clk 0:02:11.6]} 23... c4 {[%clk 0:01:56.5]} 24. Rd1 {[%clk 0:02:05.4]} 24...
b5 {[%clk 0:01:52.8]} 25. h4 {[%clk 0:02:03.9]} 25... d3 {[%clk 0:01:52.5]} 26.
Nf3 {[%clk 0:01:59.1]} 26... Re8 {[%clk 0:01:44.1]} 27. Re1 {[%clk 0:01:49.7]}
27... Rxe1+ {[%clk 0:01:16.1]} 28. Nxe1 {[%clk 0:01:49.1]} 28... Nd4 {[%clk
0:01:16.3]} 29. Be5 {[%clk 0:01:42.4]} 29... Ne2+ {[%clk 0:01:14.4]} 30. Rxe2
{[%clk 0:01:41.3]} 30... dxe2 {[%clk 0:01:14.3]} 31. Bxg7 {[%clk 0:01:40.7]}
31... c3 {[%clk 0:01:08.7]} 32. Bxc3 {[%clk 0:01:38.2]} 32... Bxa2 {[%clk
0:01:09.1]} 33. Kf2 {[%clk 0:01:37.5]} 33... Bc4 {[%clk 0:01:09.6]} 34. h5
{[%clk 0:01:36.1]} 34... Ke6 {[%clk 0:01:06.2]} 35. h6 {[%clk 0:01:35.7]} 1-0

[Event "Early-Titled-Tuesday-Blitz-April-16-2024"]
[Site "Chess.com"]
[Date "2024.04.16"]
[Round "2"]
[White "Aradhya2000"]
[Black "stolencandy13"]
[Result "0-1"]
[WhiteElo "2758"]
[BlackElo "2560"]
[TimeControl "180+1"]
[EndTime "8:15:28 PDT"]
[Termination "stolencandy13 won by checkmate"]

1. d4 {[%clk 0:03:00.9]} 1... Nf6 {[%clk 0:02:26.1]} 2. c4 {[%clk 0:03:00.6]}
2... c5 {[%clk 0:02:24.4]} 3. d5 {[%clk 0:03:00.2]} 3... e6 {[%clk 0:02:23.6]}
4. Nf3 {[%clk 0:03:00.1]} 4... exd5 {[%clk 0:02:24.1]} 5. cxd5 {[%clk
0:03:00.2]} 5... d6 {[%clk 0:02:25]} 6. e4 {[%clk 0:02:59.5]} 6... a6 {[%clk
0:02:23.6]} 7. h3 {[%clk 0:02:59]} 7... g6 {[%clk 0:02:21.5]} 8. Bd3 {[%clk
0:02:59]} 8... Bg7 {[%clk 0:02:20.9]} 9. O-O {[%clk 0:02:59.4]} 9... Nbd7 {[%clk
0:02:11.7]} 10. a4 {[%clk 0:02:56.4]} 10... Nh5 {[%clk 0:02:11]} 11. Na3 {[%clk
0:02:55.9]} 11... O-O {[%clk 0:01:35.7]} 12. Nc4 {[%clk 0:02:54.1]} 12... Nb6
{[%clk 0:01:32.6]} 13. Bg5 {[%clk 0:02:52.8]} 13... Qc7 {[%clk 0:01:25.3]} 14.
Qd2 {[%clk 0:02:36.7]} 14... Nxc4 {[%clk 0:01:23]} 15. Bxc4 {[%clk 0:02:37.6]}
15... Re8 {[%clk 0:01:22.2]} 16. Rfe1 {[%clk 0:02:35.3]} 16... Bd7 {[%clk
0:01:14.5]} 17. e5 {[%clk 0:02:29]} 17... b5 {[%clk 0:01:08.6]} 18. axb5 {[%clk
0:02:09.8]} 18... axb5 {[%clk 0:01:07.9]} 19. exd6 {[%clk 0:02:10.5]} 19... Qxd6
{[%clk 0:01:01.2]} 20. Be7 {[%clk 0:02:09.4]} 20... Qb6 {[%clk 0:00:44.6]} 21.
Bf1 {[%clk 0:02:08.9]} 21... Rxa1 {[%clk 0:00:42]} 22. Rxa1 {[%clk 0:02:06.5]}
22... Rxe7 {[%clk 0:00:41.8]} 23. g4 {[%clk 0:01:58]} 23... Nf6 {[%clk
0:00:40.5]} 24. d6 {[%clk 0:01:56.8]} 24... Re8 {[%clk 0:00:39.4]} 25. Rd1
{[%clk 0:01:48.3]} 25... Ne4 {[%clk 0:00:37.8]} 26. Qd5 {[%clk 0:01:46.4]} 26...
Bc6 {[%clk 0:00:33]} 27. d7 {[%clk 0:01:42.4]} 27... Rd8 {[%clk 0:00:27.4]} 28.
Qd3 {[%clk 0:01:41.6]} 28... Rxd7 {[%clk 0:00:26]} 29. Qe2 {[%clk 0:01:38.8]}
29... Rxd1 {[%clk 0:00:25.8]} 30. Qxd1 {[%clk 0:01:39.7]} 30... c4 {[%clk
0:00:25.2]} 31. b3 {[%clk 0:01:38.9]} 31... Qxf2+ {[%clk 0:00:24.2]} 32. Kh1
{[%clk 0:01:39.7]} 32... Ng3# {[%clk 0:00:24.8]} 0-1

[Event "Early-Titled-Tuesday-Blitz-April-16-2024"]
[Site "Chess.com"]
[Date "2024.04.16"]
[Round "2"]
[White "GrotBchess"]
[Black "AlexPapasimakopoulos"]
[Result "0-1"]
[WhiteElo "2454"]
[BlackElo "2718"]
[TimeControl "180+1"]
[EndTime "8:15:31 PDT"]
[Termination "AlexPapasimakopoulos won by resignation"]

1. e4 {[%clk 0:03:00.9]} 1... e6 {[%clk 0:02:54.2]} 2. d4 {[%clk 0:03:00.1]}
2... d5 {[%clk 0:02:40.1]} 3. Nc3 {[%clk 0:02:57.8]} 3... Bb4 {[%clk 0:02:39.4]}
4. e5 {[%clk 0:02:56.8]} 4... c5 {[%clk 0:02:36.7]} 5. a3 {[%clk 0:02:53.3]}
5... Bxc3+ {[%clk 0:02:36.2]} 6. bxc3 {[%clk 0:02:54.2]} 6... Nc6 {[%clk
0:02:36.6]} 7. h4 {[%clk 0:02:53.3]} 7... Nge7 {[%clk 0:02:34.4]} 8. h5 {[%clk
0:02:52.6]} 8... h6 {[%clk 0:02:34.5]} 9. Nf3 {[%clk 0:02:46.3]} 9... Bd7 {[%clk
0:02:31.4]} 10. Bd3 {[%clk 0:02:45.3]} 10... Qa5 {[%clk 0:02:31.2]} 11. Bd2
{[%clk 0:02:44.7]} 11... c4 {[%clk 0:02:31.8]} 12. Be2 {[%clk 0:02:43.9]} 12...
O-O-O {[%clk 0:02:32.5]} 13. Qb1 {[%clk 0:02:37.1]} 13... f6 {[%clk 0:02:30.4]}
14. exf6 {[%clk 0:02:29.5]} 14... gxf6 {[%clk 0:02:31.3]} 15. Qb2 {[%clk
0:02:29.6]} 15... Qc7 {[%clk 0:02:26.2]} 16. Rb1 {[%clk 0:02:19.4]} 16... b6
{[%clk 0:02:23.5]} 17. Qb5 {[%clk 0:02:07.3]} 17... Rdg8 {[%clk 0:02:17.4]} 18.
g3 {[%clk 0:02:06.4]} 18... e5 {[%clk 0:02:13.9]} 19. Qa6+ {[%clk 0:01:46.9]}
19... Kb8 {[%clk 0:02:12.3]} 20. Rh4 {[%clk 0:01:45.6]} 20... Ka8 {[%clk
0:02:05.4]} 21. dxe5 {[%clk 0:01:32.4]} 21... Nb8 {[%clk 0:02:01.9]} 22. exf6
{[%clk 0:01:11]} 22... Nxa6 {[%clk 0:01:59.6]} 23. fxe7 {[%clk 0:01:11]} 23...
Bf5 {[%clk 0:01:56.3]} 24. Nd4 {[%clk 0:01:08.8]} 24... Be4 {[%clk 0:01:40.8]}
25. Rb5 {[%clk 0:00:38.9]} 25... Nc5 {[%clk 0:01:34.1]} 26. a4 {[%clk
0:00:33.1]} 26... Rxg3 {[%clk 0:01:26.7]} 27. Bf4 {[%clk 0:00:24.9]} 27... Rg1+
{[%clk 0:01:26.5]} 28. Kd2 {[%clk 0:00:25]} 28... Qxe7 {[%clk 0:01:27.1]} 29. a5
{[%clk 0:00:24.6]} 29... Qxh4 {[%clk 0:01:26.4]} 0-1